fUST/lending_fUST_20250129
["ID","MTS","AMOUNT","RATE_DAILY","PERIOD"]
[350748029,1738102245653,-500.0,0.00016575,2]
[350748031,1738102245663,-500.0,0.00016575,2]
[350748033,1738102245673,-500.0,0.00016575,2]
[350748035,1738102245683,-500.0,0.00016575,2]
[350748037,1738102245693,-500.0,0.00016575,2]
[350748039,1738102245702,-500.0,0.00016575,2]
[350748041,1738102245712,-500.0,0.00016575,2]
[350748043,1738102245722,-462.49862645,0.00016575,2]
[350748045,1738102245732,-500.0,0.00016575,2]
[350748047,1738102245742,-500.0,0.00016575,2]
[350748049,1738102245751,-500.0,0.00016575,2]
[350748051,1738102245763,-498.4992661,0.00016575,2]
[350748053,1738102245773,-500.0,0.00016575,2]
[350748055,1738102245783,-500.0,0.00016575,2]
[350748057,1738102245792,-437.68414253,0.00016575,2]
[350748060,1738102245811,-500.0,0.00016575,2]
[350748062,1738102245820,-500.0,0.00016575,2]
[350748063,1738102245830,-505.89393201,0.00016575,2]
[350748065,1738102245841,-500.0,0.00016575,2]
[350748068,1738102245851,-500.0,0.00016575,2]
[350748069,1738102245861,-500.0,0.00016575,2]
[350748071,1738102245871,-500.0,0.00016575,2]
[350748073,1738102245881,-317.96,0.00016575,2]
[350748075,1738102245890,-500.0,0.00016575,2]
[350748077,1738102245900,-500.0,0.00016575,2]
[350748079,1738102245909,-500.0,0.00016575,2]
[350748081,1738102245919,-500.0,0.00016575,2]
[350748083,1738102245928,-500.0,0.00016575,2]
[350748085,1738102245938,-500.0,0.00016575,2]
[350748087,1738102245948,-549.06630047,0.00016575,2]
[350748089,1738102245958,-500.0,0.00016575,2]
[350748091,1738102245968,-500.0,0.00016575,2]
[350748093,1738102245978,-500.0,0.00016575,2]
[350748095,1738102245987,-500.0,0.00016575,2]
[350748097,1738102245996,-500.0,0.00016575,2]
[350748099,1738102246007,-500.0,0.00016575,2]
[350748101,1738102246018,-500.0,0.00016575,2]
[350748103,1738102246028,-500.0,0.00016575,2]
[350748104,1738102246038,-500.0,0.00016575,2]
[350748106,1738102246048,-500.0,0.00016575,2]
[350748108,1738102246057,-500.0,0.00016575,2]
[350748110,1738102246067,-500.0,0.00016575,2]
[350748112,1738102246076,-500.0,0.00016575,2]
[350748114,1738102246086,-500.0,0.00016575,2]
[350748116,1738102246096,-500.0,0.00016575,2]
[350748118,1738102246106,-500.0,0.00016575,2]
[350748121,1738102246115,-500.0,0.00016575,2]
[350748123,1738102246124,-500.0,0.00016575,2]
[350748126,1738102246134,-500.0,0.00016575,2]
[350748128,1738102246144,-500.0,0.00016575,2]
[350748130,1738102246153,-500.0,0.00016575,2]
[350748132,1738102246163,-500.0,0.00016575,2]
[350748134,1738102246173,-500.0,0.00016575,2]
[350748135,1738102246182,-500.0,0.00016575,2]
[350748137,1738102246192,-500.0,0.00016575,2]
[350748139,1738102246202,-500.0,0.00016575,2]
[350748141,1738102246214,-500.0,0.00016575,2]
[350748143,1738102246224,-500.0,0.00016575,2]
[350748145,1738102246233,-500.0,0.00016575,2]
[350748147,1738102246243,-503.93489987,0.00016575,2]
[350748149,1738102246252,-500.0,0.00016575,2]
[350748151,1738102246267,-571.16868327,0.00016575,2]
[350748153,1738102246277,-500.0,0.00016575,2]
[350748155,1738102246287,-500.0,0.00016575,2]
[350748157,1738102246298,-485.76181211,0.00016575,2]
[350748159,1738102246307,-500.0,0.00016575,2]
[350748161,1738102246317,-500.0,0.00016575,2]
[350748163,1738102246327,-500.0,0.00016575,2]
[350748165,1738102246335,-500.0,0.00016575,2]
[350748167,1738102246345,-500.0,0.00016575,2]
[350748169,1738102246355,-500.0,0.00016575,2]
[350748171,1738102246365,-500.0,0.00016575,2]
[350748173,1738102246374,-539.83,0.00016575,2]
[350748175,1738102246384,-500.0,0.00016575,2]
[350748176,1738102246394,-500.0,0.00016575,2]
[350748178,1738102246403,-500.0,0.00016575,2]
[350748180,1738102246412,-500.0,0.00016575,2]
[350748182,1738102246422,-564.51520791,0.00016575,2]
[350748184,1738102246432,-500.0,0.00016575,2]
[350748186,1738102246442,-500.0,0.00016575,2]
[350748188,1738102246451,-575.35366207,0.00016575,2]
[350748190,1738102246461,-500.0,0.00016575,2]
[350748192,1738102246471,-500.0,0.00016575,2]
[350748194,1738102246483,-502.84566224,0.00016575,2]
[350748196,1738102246492,-500.0,0.00016575,2]
[350748198,1738102246502,-500.0,0.00016575,2]
[350748200,1738102246517,-1554.21,0.00016575,2]
[350748202,1738102246528,-500.0,0.00016575,2]
[350748204,1738102246538,-505.14556761,0.00016575,2]
[350748206,1738102246550,-2932.88,0.00016575,2]
[350748208,1738102246560,-500.0,0.00016575,2]
[350748210,1738102246570,-519.32634292,0.00016575,2]
[350748212,1738102246582,-226.57920029,0.00016575,2]
[350748213,1738102246592,-653.37,0.00016575,2]
[350748215,1738102246602,-502.3798999,0.00016575,2]
[350748233,1738102246772,-500.0,0.00016575,2]
[350748235,1738102246785,-500.0,0.00016575,2]
[350748237,1738102246795,-500.0,0.00016575,2]
[350748239,1738102246805,-500.0,0.00016575,2]
[350748241,1738102246814,-500.0,0.00016575,2]
[350748243,1738102246824,-500.0,0.00016575,2]
[350748244,1738102246834,-500.0,0.00016575,2]
[350748246,1738102246843,-500.0,0.00016575,2]
[350748248,1738102246853,-500.0,0.00016575,2]
[350748250,1738102246862,-196.46,0.00016575,2]
[350748251,1738102246873,-531.39,0.00016575,2]
[350748253,1738102246883,-510.3813795,0.00016575,2]
[350748255,1738102246892,-500.0,0.00016575,2]
[350748256,1738102246902,-503.82382776,0.00016575,2]
[350748258,1738102246912,-500.0,0.00016575,2]
[350748260,1738102246921,-1517.82,0.00016575,2]
[350748262,1738102246932,-645.56681976,0.00016575,2]
[350748264,1738102246942,-500.0,0.00016575,2]
[350748265,1738102246951,-500.0,0.00016575,2]
[350748267,1738102246962,-500.0,0.00016575,2]
[350748269,1738102246972,-800.6,0.00016575,2]
[350748271,1738102246982,-500.0,0.00016575,2]
[350748272,1738102246993,-4379.9,0.00016575,2]
[350748274,1738102247002,-500.0,0.00016575,2]
[350748276,1738102247013,-500.0,0.00016575,2]
[350748277,1738102247022,-500.0,0.00016575,2]
[350748279,1738102247032,-2178.76,0.00016575,2]
[350748281,1738102247041,-500.0,0.00016575,2]
[350748283,1738102247051,-500.0,0.00016575,2]
[350748285,1738102247060,-500.0,0.00016575,2]
[350748286,1738102247070,-651.51,0.00016575,2]
[350748288,1738102247079,-500.0,0.00016575,2]
[350748290,1738102247089,-500.0,0.00016575,2]
[350748292,1738102247098,-500.0,0.00016575,2]
[350748293,1738102247107,-500.0,0.00016575,2]
[350748295,1738102247117,-500.0,0.00016575,2]
[350748297,1738102247127,-151.0,0.00016575,2]
[350748299,1738102247136,-14819.66,0.00016575,2]
[350748300,1738102247146,-708.46,0.00016575,2]
[350748302,1738102247156,-218.23646,0.00016575,2]
[350748304,1738102247166,-500.0,0.00016575,2]
[350748305,1738102247176,-568.80474727,0.00016575,2]
[350748307,1738102247186,-620.36,0.00016575,2]
[350748309,1738102247196,-500.0,0.00016575,2]
[350748311,1738102247207,-500.0,0.00016575,2]
[350748312,1738102247217,-500.0,0.00016575,2]
[350748314,1738102247231,-372.768056,0.00016575,2]
[350748316,1738102247242,-356.39521676,0.00016575,2]
[350748318,1738102247253,-500.0,0.00016575,2]
[350748319,1738102247270,-583.52863974,0.00016575,2]
[350748321,1738102247280,-500.0,0.00016575,2]
[350748323,1738102247293,-500.0,0.00016575,2]
[350748324,1738102247303,-372.768056,0.00016575,2]
[350748326,1738102247315,-151.0,0.00016575,2]
[350748328,1738102247326,-500.0,0.00016575,2]
[350748330,1738102247336,-417.95224156,0.00016575,2]
[350748332,1738102247347,-2320.37,0.00016575,2]
[350748333,1738102247357,-500.0,0.00016575,2]
[350748335,1738102247367,-151.0,0.00016575,2]
[350748337,1738102247377,-3945.22,0.00016575,2]
[350748338,1738102247388,-643.03,0.00016575,2]
[350748340,1738102247398,-500.0,0.00016575,2]
[350748342,1738102247407,-599.15,0.00016575,2]
[350748344,1738102247418,-500.0,0.00016575,2]
[350748346,1738102247427,-500.0,0.00016575,2]
[350748348,1738102247437,-1381.15,0.00016575,2]
[350748349,1738102247447,-500.0,0.00016575,2]
[350748350,1738102247456,-500.0,0.00016575,2]
[350748352,1738102247466,-1851.33,0.00016575,2]
[350748353,1738102247476,-500.0,0.00016575,2]
[350748355,1738102247487,-704.89,0.00016575,2]
[350748356,1738102247496,-500.0,0.00016575,2]
[350748358,1738102247506,-500.0,0.00016575,2]
[350748359,1738102247518,-151.0,0.00016575,2]
[350748361,1738102247528,-500.0,0.00016575,2]
[350748364,1738102247542,-151.0,0.00016575,2]
[350748365,1738102247552,-1743.3,0.00016575,2]
[350748367,1738102247561,-500.0,0.00016575,2]
[350748369,1738102247572,-151.0,0.00016575,2]
[350748370,1738102247581,-500.0,0.00016575,2]
[350748372,1738102247591,-500.0,0.00016575,2]
[350748373,1738102247600,-500.0,0.00016575,2]
[350748375,1738102247610,-596.92747546,0.00016575,2]
[350748377,1738102247620,-525.83,0.00016575,2]
[350748379,1738102247629,-500.0,0.00016575,2]
[350748381,1738102247639,-579.33,0.00016575,2]
[350748382,1738102247648,-500.0,0.00016575,2]
[350748384,1738102247658,-500.0,0.00016575,2]
[350748386,1738102247668,-500.0,0.00016575,2]
[350748388,1738102247677,-5863.76,0.00016575,2]
[350748389,1738102247686,-649.42,0.00016575,2]
[350748391,1738102247696,-500.0,0.00016575,2]
[350748393,1738102247706,-1300.15,0.00016575,2]
[350748395,1738102247715,-151.0,0.00016575,2]
[350748396,1738102247725,-500.0,0.00016575,2]
[350748398,1738102247736,-500.0,0.00016575,2]
[350748400,1738102247745,-151.0,0.00016575,2]
[350748402,1738102247767,-524.6,0.00016575,2]
[350748404,1738102247777,-275.86028,0.00016575,2]
[350748406,1738102247787,-591.57,0.00016575,2]
[350748408,1738102247797,-500.0,0.00016575,2]
[350748409,1738102247807,-3000.0,0.0001658,2]
[350748411,1738102247816,-157.866317,0.0001658,2]
[350748413,1738102247826,-157.866317,0.0001658,2]
[350748415,1738102247836,-151.0,0.0001658,2]
[350748416,1738102247845,-151.0,0.0001658,2]
[350748418,1738102247855,-151.0,0.0001658,2]
[350748420,1738102247864,-151.0,0.0001658,2]
[350748422,1738102247873,-151.0,0.0001658,2]
[350748423,1738102247883,-151.0,0.0001658,2]
[350748425,1738102247893,-151.0,0.0001658,2]
[350748427,1738102247903,-3000.0,0.0001659,2]
[350748429,1738102247913,-3000.0,0.000166,2]
[350748430,1738102247922,-151.0,0.000166,2]
[350748432,1738102247932,-3000.0,0.0001661,2]
[350748434,1738102247941,-3000.0,0.0001662,2]
[350748435,1738102247951,-3000.0,0.0001663,2]
[350748437,1738102247961,-3000.0,0.0001664,2]
[350748439,1738102247970,-3000.0,0.0001665,2]
[350748440,1738102247980,-3000.0,0.0001666,2]
[350748442,1738102247991,-1546.77895253,0.0001667,2]
[350748444,1738102248009,-1453.22104747,0.0001667,2]
[350748446,1738102248020,-1377.51545044,0.0001668,2]
[350748448,1738102248032,-1622.48454956,0.0001668,2]
[350748450,1738102248042,-3000.0,0.0001669,2]
[350748452,1738102248052,-3000.0,0.000167,2]
[350748453,1738102248062,-399.6089955,0.000167,2]
[350748455,1738102248072,-151.0,0.000167,2]
[350748457,1738102248083,-192.704968,0.000167,2]
[350748459,1738102248093,-3000.0,0.0001671,2]
[350748460,1738102248102,-151.0,0.00016711,2]
[350748462,1738102248112,-151.0,0.00016711,2]
[350748464,1738102248121,-151.0,0.00016711,2]
[350748465,1738102248131,-146.10283383,0.00016711,2]
[350748467,1738102248143,-4.89716617,0.00016711,2]
[350748469,1738102248153,-151.0,0.00016711,2]
[350748471,1738102248163,-151.0,0.00016711,2]
[350748473,1738102248172,-74.18445183,0.00016711,2]
[350748481,1738102248267,-500.0,0.00016438,2]
[350748482,1738102248278,-500.0,0.00016575,2]
[350748484,1738102248289,-76.81554817,0.00016711,2]
[350748486,1738102248298,-145.76505868,0.00016711,2]
[350748488,1738102248312,-5.23494132,0.00016711,2]
[350748490,1738102248322,-500.0,0.00016712,2]
[350748492,1738102248333,-25.97046848,0.00016712,2]
[350748494,1738102248345,-474.02953152,0.00016712,2]
[350748495,1738102248355,-46.30087878,0.00016712,2]
[350749669,1738102849012,248.671384,0.00013973,2]
[350749673,1738103019944,273.4265592,0.00015101,2]
[350749720,1738103400513,300.0,0.00015101,2]
[350749776,1738103432139,-199.823409,0.00015298,2]
[350749778,1738103432148,-300.0,0.00015453,2]
[350749780,1738103432158,-354.132091,0.00015454,2]
[350749789,1738103432232,-18009.26119678,0.00015454,2]
[350749791,1738103432245,-345.0,0.00015454,2]
[350750336,1738103437829,-500.0,0.00015499,2]
[350750338,1738103437838,-296.29339235,0.00015499,2]
[350750340,1738103437848,-585.0,0.00015499,2]
[350750342,1738103437858,-266.05190096,0.00015499,2]
[350750347,1738103437924,-233.94809904,0.00015499,2]
[350750349,1738103437934,-500.0,0.00015499,2]
[350750351,1738103437943,-176.70562924,0.00015499,2]
[350750353,1738103437953,-855.50630882,0.00015499,2]
[350750355,1738103437962,-500.0,0.00015499,2]
[350750357,1738103437971,-500.0,0.00015499,2]
[350750359,1738103437981,-855.50630882,0.00015499,2]
[350750361,1738103437990,-500.0,0.00015499,2]
[350750363,1738103437999,-589.43447982,0.00015499,2]
[350750365,1738103438009,-855.50630882,0.00015499,2]
[350750367,1738103438018,-500.0,0.00015499,2]
[350750369,1738103438028,-855.50630882,0.00015499,2]
[350750371,1738103438037,-500.0,0.00015499,2]
[350750373,1738103438046,-855.50630882,0.00015499,2]
[350750374,1738103438055,-500.0,0.00015499,2]
[350750376,1738103438064,-473.67340017,0.00015499,2]
[350750379,1738103438090,-26.32659983,0.00015499,2]
[350750381,1738103438100,-855.50630882,0.00015499,2]
[350750383,1738103438110,-500.0,0.00015499,2]
[350750385,1738103438120,-501.63755251,0.00015499,2]
[350750387,1738103438131,-353.86875631,0.00015499,2]
[350750389,1738103438142,-855.50630882,0.00015499,2]
[350750391,1738103438151,-500.0,0.00015499,2]
[350750393,1738103438161,-855.50630882,0.00015499,2]
[350750395,1738103438171,-500.0,0.00015499,2]
[350750397,1738103438180,-500.0,0.00015499,2]
[350750399,1738103438190,-855.50630882,0.00015499,2]
[350750401,1738103438199,-855.50630882,0.00015499,2]
[350750403,1738103438209,-500.0,0.00015499,2]
[350750405,1738103438218,-397.34357979,0.00015499,2]
[350750407,1738103438227,-855.50630882,0.00015499,2]
[350750409,1738103438236,-500.0,0.00015499,2]
[350750410,1738103438245,-855.50630882,0.00015499,2]
[350750412,1738103438255,-500.0,0.00015499,2]
[350750414,1738103438264,-855.50630882,0.00015499,2]
[350750416,1738103438273,-500.0,0.00015499,2]
[350750418,1738103438282,-855.50630882,0.00015499,2]
[350750420,1738103438291,-500.0,0.00015499,2]
[350750422,1738103438301,-855.50630882,0.00015499,2]
[350750424,1738103438315,-500.0,0.00015499,2]
[350750426,1738103438324,-855.50630882,0.00015499,2]
[350750428,1738103438333,-500.0,0.00015499,2]
[350750430,1738103438342,-855.50630882,0.00015499,2]
[350750432,1738103438351,-500.0,0.00015499,2]
[350750434,1738103438360,-855.50630882,0.00015499,2]
[350750436,1738103438369,-500.0,0.00015499,2]
[350750438,1738103438378,-855.50630882,0.00015499,2]
[350750440,1738103438388,-855.50630882,0.00015499,2]
[350750442,1738103438403,-855.50630882,0.00015499,2]
[350750444,1738103438413,-500.0,0.00015499,2]
[350750446,1738103438423,-855.50630882,0.00015499,2]
[350750448,1738103438432,-855.50630882,0.00015499,2]
[350750450,1738103438441,-855.50630882,0.00015499,2]
[350750451,1738103438450,-855.50630882,0.00015499,2]
[350750453,1738103438460,-283.94903029,0.00015499,2]
[350750604,1738103440068,-1145.63773337,0.00015357,2]
[350750606,1738103440081,-2754.0,0.00015357,2]
[350750616,1738103440171,-1977.6301833,0.00015357,2]
[350750618,1738103440183,-1363.95,0.00015357,2]
[350750620,1738103440195,-981.6659432,0.00015357,2]
[350750623,1738103440212,-15325.98315703,0.00015357,2]
[350750903,1738103442921,-1351.1329831,0.00015357,2]
[350750905,1738103442932,-185.60653238,0.00015499,2]
[350750907,1738103442946,-385.95074615,0.00015499,2]
[350750909,1738103442956,-855.50630882,0.00015499,2]
[350750911,1738103442967,-855.50630882,0.00015499,2]
[350750913,1738103442976,-855.50630882,0.00015499,2]
[350750915,1738103442987,-855.50630882,0.00015499,2]
[350750917,1738103442997,-759.52401857,0.00015499,2]
[350750919,1738103443009,-95.98229025,0.00015499,2]
[350750921,1738103443019,-855.50630882,0.00015499,2]
[350750923,1738103443030,-736.01140093,0.00015499,2]
[350750925,1738103443042,-119.49490789,0.00015499,2]
[350750927,1738103443052,-855.50630882,0.00015499,2]
[350750929,1738103443062,-855.50630882,0.00015499,2]
[350750931,1738103443072,-855.50630882,0.00015499,2]
[350750933,1738103443081,-855.50630882,0.00015499,2]
[350750935,1738103443091,-855.50630882,0.00015499,2]
[350750937,1738103443100,-855.50630882,0.00015499,2]
[350750939,1738103443110,-855.50630882,0.00015499,2]
[350750941,1738103443120,-855.50630882,0.00015499,2]
[350750943,1738103443130,-8271.45462235,0.000155,2]
[350751108,1738103444974,199.823409,0.00015101,2]
[350751143,1738103445957,-12459.6551415,0.000155,2]
[350751147,1738103445977,-2269.5000001,0.000155,2]
[350751366,1738103667463,668.99207621,0.00015101,2]
[350751374,1738103923379,245.849015,0.00013973,2]
[350751375,1738103952543,311.4120564,0.00014776,2]
[350751378,1738104053036,199.823409,0.00014659,2]
[350751387,1738104414384,24900.0,0.00014658,2]
[350751411,1738104632305,-195.65960989,0.00015391,2]
[350751413,1738104632320,-300.0,0.00015472,2]
[350751414,1738104632335,-500.0,0.00015473,2]
[350751415,1738104632347,-500.0,0.00015473,2]
[350751416,1738104632359,-500.0,0.00015473,2]
[350751417,1738104632373,-500.0,0.00015473,2]
[350751418,1738104632386,-417.25801069,0.00015473,2]
[350751419,1738104632399,-500.0,0.00015473,2]
[350751420,1738104632413,-500.0,0.00015473,2]
[350751421,1738104632426,-500.0,0.00015473,2]
[350751422,1738104632439,-631.2721576,0.00015473,2]
[350751423,1738104632452,-500.0,0.00015473,2]
[350751424,1738104632467,-500.0,0.00015473,2]
[350751425,1738104632481,-306.90318233,0.00015473,2]
[350751426,1738104632493,-176.60383109,0.00015489,2]
[350751427,1738104632506,-500.0,0.00015489,2]
[350751428,1738104632520,-736.03308413,0.00015489,2]
[350751429,1738104632533,-500.0,0.00015489,2]
[350751430,1738104632547,-500.0,0.00015489,2]
[350751431,1738104632561,-736.03308413,0.00015489,2]
[350751432,1738104632574,-500.0,0.00015489,2]
[350751433,1738104632586,-736.03308413,0.00015489,2]
[350751434,1738104632598,-736.03308413,0.00015489,2]
[350751435,1738104632612,-500.0,0.00015489,2]
[350751436,1738104632624,-736.03308413,0.00015489,2]
[350751437,1738104632638,-500.0,0.00015489,2]
[350751438,1738104632650,-736.03308413,0.00015489,2]
[350751439,1738104632664,-500.0,0.00015489,2]
[350751440,1738104632676,-151.0,0.00015491,2]
[350751441,1738104632691,-6413.49238069,0.000155,2]
[350751442,1738104632727,-736.03308413,0.00015489,2]
[350751443,1738104632738,-500.0,0.00015489,2]
[350751444,1738104632749,-1756.00047107,0.000155,2]
[350751445,1738104632762,-5239.99357511,0.000155,2]
[350751463,1738104638578,-736.03308413,0.00015489,2]
[350751464,1738104638588,-500.0,0.00015489,2]
[350751465,1738104638598,-736.03308413,0.00015489,2]
[350751466,1738104638607,-500.0,0.00015489,2]
[350751467,1738104638617,-736.03308413,0.00015489,2]
[350751468,1738104638627,-500.0,0.00015489,2]
[350751469,1738104638637,-551.88361675,0.00015489,2]
[350751470,1738104638662,-184.14946738,0.00015489,2]
[350751471,1738104638672,-500.0,0.00015489,2]
[350751472,1738104638681,-736.03308413,0.00015489,2]
[350751473,1738104638691,-500.0,0.00015489,2]
[350751474,1738104638700,-165.46791215,0.00015489,2]
[350751475,1738104640218,-570.56517198,0.00015489,2]
[350751476,1738104640228,-500.0,0.00015489,2]
[350751477,1738104640239,-736.03308413,0.00015489,2]
[350751478,1738104640248,-500.0,0.00015489,2]
[350751479,1738104640258,-736.03308413,0.00015489,2]
[350751480,1738104640267,-500.0,0.00015489,2]
[350751481,1738104640277,-736.03308413,0.00015489,2]
[350751482,1738104640287,-736.03308413,0.00015489,2]
[350751483,1738104640297,-500.0,0.00015489,2]
[350751484,1738104640307,-736.03308413,0.00015489,2]
[350751485,1738104640316,-500.0,0.00015489,2]
[350751486,1738104640326,-736.03308413,0.00015489,2]
[350751487,1738104640336,-736.03308413,0.00015489,2]
[350751488,1738104640345,-736.03308413,0.00015489,2]
[350751489,1738104640355,-586.82600043,0.00015489,2]
[350751490,1738104640365,-736.03308413,0.00015489,2]
[350751491,1738104640375,-500.0,0.00015489,2]
[350751492,1738104640384,-736.03308413,0.00015489,2]
[350751493,1738104640394,-736.03308413,0.00015489,2]
[350751494,1738104640404,-736.03308413,0.00015489,2]
[350751495,1738104640413,-736.03308413,0.00015489,2]
[350751496,1738104640424,-736.03308413,0.00015489,2]
[350751497,1738104640434,-736.03308413,0.00015489,2]
[350751498,1738104640443,-736.03308413,0.00015489,2]
[350751499,1738104640454,-736.03308413,0.00015489,2]
[350751500,1738104640463,-736.03308413,0.00015489,2]
[350751501,1738104640473,-736.03308413,0.00015489,2]
[350751502,1738104640483,-736.03308413,0.00015489,2]
[350751503,1738104640493,-736.03308413,0.00015489,2]
[350751504,1738104640503,-736.03308413,0.00015489,2]
[350751505,1738104640513,-736.03308413,0.00015489,2]
[350751506,1738104640523,-736.03308413,0.00015489,2]
[350751507,1738104640533,-736.03308413,0.00015489,2]
[350751508,1738104640543,-736.03308413,0.00015489,2]
[350751509,1738104640553,-736.03308413,0.00015489,2]
[350751510,1738104640563,-736.03308413,0.00015489,2]
[350751511,1738104640573,-736.03308413,0.00015489,2]
[350751512,1738104640583,-736.03308413,0.00015489,2]
[350751513,1738104640593,-736.03308413,0.00015489,2]
[350751514,1738104640602,-114449.17708074,0.000155,2]
[350751515,1738104640615,-12471.02998646,0.000155,2]
[350751530,1738104643118,-2533.748,0.000155,2]
[350751531,1738104643158,-51530.15335416,0.000155,2]
[350751563,1738104646420,-835.76,0.000155,2]
[350751575,1738104879783,242.687204,0.00013973,2]
[350751579,1738105056744,267.9904157,0.00015077,2]
[350751585,1738105393127,157.404293,0.00013699,2]
[350751591,1738105615987,-300.0,0.00015157,2]
[350751592,1738105616020,-13159.84174,0.00015158,2]
[350751597,1738105714740,250.221395,0.00013973,2]
[350751654,1738105832459,-426.89093367,0.0001547,2]
[350751655,1738105832471,-500.0,0.00015473,2]
[350751656,1738105832481,-300.0,0.00015498,2]
[350751657,1738105832491,-500.0,0.00015499,2]
[350751658,1738105832503,-500.0,0.00015499,2]
[350751659,1738105832512,-620.75844449,0.00015499,2]
[350751660,1738105832522,-500.0,0.00015499,2]
[350751661,1738105832532,-500.0,0.00015499,2]
[350751662,1738105832542,-500.0,0.00015499,2]
[350751663,1738105832551,-500.0,0.00015499,2]
[350751664,1738105832562,-500.0,0.00015499,2]
[350751665,1738105832572,-500.0,0.00015499,2]
[350751666,1738105832582,-500.0,0.00015499,2]
[350751667,1738105832591,-500.0,0.00015499,2]
[350751668,1738105832602,-500.0,0.00015499,2]
[350751669,1738105832611,-500.0,0.00015499,2]
[350751670,1738105832621,-500.0,0.00015499,2]
[350751671,1738105832630,-500.0,0.00015499,2]
[350751672,1738105832640,-500.0,0.00015499,2]
[350751673,1738105832649,-500.0,0.00015499,2]
[350751674,1738105832659,-500.0,0.00015499,2]
[350751675,1738105832668,-500.0,0.00015499,2]
[350751676,1738105832678,-500.0,0.00015499,2]
[350751677,1738105832687,-500.0,0.00015499,2]
[350751679,1738105832697,-500.0,0.00015499,2]
[350751681,1738105832707,-500.0,0.00015499,2]
[350751683,1738105832717,-500.0,0.00015499,2]
[350751685,1738105832726,-596.06744026,0.00015499,2]
[350751687,1738105832736,-500.0,0.00015499,2]
[350751689,1738105832746,-500.0,0.00015499,2]
[350751691,1738105832755,-500.0,0.00015499,2]
[350751693,1738105832765,-500.0,0.00015499,2]
[350751695,1738105832774,-500.0,0.00015499,2]
[350751697,1738105832784,-500.0,0.00015499,2]
[350751698,1738105832793,-500.0,0.00015499,2]
[350751700,1738105832803,-500.0,0.00015499,2]
[350751702,1738105832813,-500.0,0.00015499,2]
[350751704,1738105832823,-500.0,0.00015499,2]
[350751706,1738105832832,-500.0,0.00015499,2]
[350751708,1738105832843,-500.0,0.00015499,2]
[350751710,1738105832852,-500.0,0.00015499,2]
[350751712,1738105832861,-500.0,0.00015499,2]
[350751714,1738105832871,-500.0,0.00015499,2]
[350751716,1738105832881,-500.0,0.00015499,2]
[350751718,1738105832891,-500.0,0.00015499,2]
[350751720,1738105832900,-500.0,0.00015499,2]
[350751722,1738105832910,-500.0,0.00015499,2]
[350751724,1738105832920,-500.0,0.00015499,2]
[350751726,1738105832929,-500.0,0.00015499,2]
[350751728,1738105832939,-500.0,0.00015499,2]
[350751730,1738105832948,-500.0,0.00015499,2]
[350751732,1738105832958,-500.0,0.00015499,2]
[350751734,1738105832968,-500.0,0.00015499,2]
[350751736,1738105832978,-500.0,0.00015499,2]
[350751738,1738105832987,-500.0,0.00015499,2]
[350751740,1738105832998,-650.0,0.00015499,2]
[350751742,1738105833007,-500.0,0.00015499,2]
[350751744,1738105833018,-500.0,0.00015499,2]
[350751746,1738105833027,-500.0,0.00015499,2]
[350751748,1738105833036,-500.0,0.00015499,2]